bitfinex/quotes_SOLUSD_20211001
["timestamp","ask_amount","ask_price","bid_price","bid_amount"]
[1633058525765,3.26620607,138.88,138.84,8.33783711]
[1633058526762,3.26620607,138.88,138.84,27.96583711]
[1633058526979,3.26620607,138.88,138.84,19.628]
[1633058527363,3.03,138.92,138.88,3.26620607]
[1633058527561,3.03,138.94,138.88,21.683]
[1633058527763,3.03,138.96,138.88,21.683]
[1633058527962,3.03,138.97,138.89,8.33470134]
[1633058528161,3.03,138.97,138.89,12.42333812]
[1633058528361,3.03,138.97,138.9,23.5178004]
[1633058528761,3.03,138.97,138.88,4.09988313]
[1633058528963,3.03,138.97,138.87,8.33570356]
[1633058529162,5.63542961,138.96,138.86,4.13167679]
[1633058529364,3.03,138.95,138.86,4.13167679]
[1633058529561,3.03,138.95,138.85,12.48105459]
[1633058529762,3.03,138.95,138.86,29.47438788]
[1633058529986,3.03,138.95,138.86,33.58445206]
[1633058530165,3.03,138.95,138.87,8.33565798]
[1633058531364,3.03,138.95,138.86,29.47438788]
[1633058531567,3.03,138.95,138.87,8.33651674]
[1633058532665,3.03,138.95,138.87,12.46373008]
[1633058532865,3.03,138.95,138.87,8.33651674]
[1633058533467,3.03,138.95,138.87,12.46025434]
[1633058536274,3.03,138.95,138.88,4.11775445]
[1633058536473,3.03,138.95,138.89,22.35276827]
[1633058542614,0.03912,138.96,138.89,22.35276827]
[1633058542811,3.03,138.97,138.89,22.35276827]
[1633058543013,0.03912,138.96,138.87,4.15131009]
[1633058543215,3.03,138.95,138.87,8.33760509]
[1633058543513,3.03,138.95,138.86,4.15211431]
[1633058543917,3.03,138.95,138.87,24.74050529]
[1633058544115,3.03,138.95,138.88,8.337508]
[1633058544516,3.03,138.95,138.87,24.74050529]
[1633058544918,3.03,138.95,138.88,8.33711702]
[1633058545714,24.62710824,138.95,138.87,24.74050529]
[1633058548217,24.62710824,138.95,138.86,4.15252638]
[1633058548417,30.26253785,138.95,138.86,4.15252638]
[1633058548618,30.26253785,138.95,138.85,4.16604403]
[1633058548817,46.14989191,138.95,138.85,4.16604403]
[1633058549218,30.0,138.94,138.86,23.17037189]
[1633058549417,46.14989191,138.95,138.87,8.33883326]
[1633058549418,3.03,138.93,138.87,8.33883326]
[1633058549818,3.03,138.93,138.87,12.50283546]
[1633058550417,3.03,138.93,138.87,8.33883326]
[1633058550618,16.21665762,138.93,138.87,8.33883326]
[1633058550820,16.21665762,138.93,138.89,2.08316767]
[1633058551018,3.03,138.93,138.89,2.08316767]
[1633058551220,3.03,138.93,138.88,2.04355643]
[1633058551619,3.03,138.93,138.89,2.02593228]
[1633058551819,3.03,138.93,138.88,2.03614317]
[1633058552619,3.03,138.93,138.89,2.0351469]
[1633058554420,3.03,138.93,138.9,2.02221027]
[1633058556624,3.03,138.93,138.89,1.95483611]
[1633058559329,3.03,138.93,138.9,1.97622163]
[1633058566438,3.03,138.93,138.89,2.00338842]
[1633058566639,3.03,138.93,138.9,2.00159633]
[1633058566843,3.03,138.93,138.89,2.00308284]
[1633058566844,8.93882596,138.92,138.89,2.00308284]
[1633058567039,3.03,138.93,138.89,2.00308284]
[1633058567239,3.03,138.93,138.89,19.70608284]
[1633058567439,3.03,138.93,138.92,1.97943186]
[1633058567640,3.03,138.93,138.92,21.43543186]
[1633058568444,33.03,138.96,138.92,21.43543186]
[1633058568641,3.03,138.96,138.92,21.43543186]
[1633058570743,3.03,138.96,138.92,1.97943186]
[1633058572947,3.03,138.96,138.93,1.95206088]
[1633058573948,3.03,138.96,138.94,25.29391842]
[1633058575547,3.03,138.96,138.94,27.23242032]
[1633058576548,3.03,138.98,138.94,25.29391842]
[1633058576947,3.03,138.98,138.93,1.94868251]
[1633058577749,3.03,138.98,138.92,1.95985253]
[1633058578352,3.03,138.98,138.93,1.95570316]
[1633058578549,3.03,138.98,138.92,1.95574464]
[1633058579652,3.03,138.98,138.93,1.95048931]
[1633058580651,3.03,138.98,138.94,28.22330126]
[1633058580853,3.03,138.98,138.94,30.16874355]
[1633058583255,3.03,138.98,138.94,28.22330126]
[1633058584257,3.03,138.98,138.93,1.94661833]
[1633058587757,8.66542961,138.98,138.93,1.94661833]
[1633058587957,8.66542961,138.98,138.92,1.96155029]
[1633058588157,30.0,138.97,138.9,1.97167468]
[1633058588357,3.06912,138.96,138.91,1.97184038]
[1633058588560,0.03912,138.95,138.91,1.97184038]
[1633058588759,3.03,138.94,138.91,1.97184038]
[1633058590362,3.03,138.94,138.92,1.96837908]
[1633058590562,3.03,138.94,138.91,1.97009275]
[1633058593265,3.03,138.96,138.92,1.94529831]
[1633058594266,5.63542961,138.95,138.92,1.94529831]
[1633058594468,3.03,138.94,138.9,1.94663185]
[1633058594668,19.34366638,138.94,138.88,1.96009897]
[1633058594867,5.63542961,138.93,138.88,1.96009897]
[1633058595068,3.03,138.92,138.88,1.96009897]
[1633058595267,27.002,138.92,138.87,1.96554704]
[1633058595468,32.63742961,138.92,138.88,1.9666778]
[1633058596471,32.63742961,138.92,138.87,1.97090497]
[1633058596674,48.95109599,138.92,138.83,3.95492139]
[1633058596872,106.91406533,138.92,138.83,3.95492139]
[1633058597069,106.91406533,138.92,138.82,3.96698289]
[1633058597268,106.95318533,138.92,138.82,3.96698289]
[1633058597672,106.95318533,138.92,138.81,3.96847975]
[1633058598070,9.52501676,138.9,138.82,29.02613911]
[1633058598270,3.03,138.89,138.82,29.02613911]
[1633058598471,26.71242933,138.89,138.82,29.02613911]
[1633058598673,45.28542933,138.89,138.82,29.02613911]
[1633058598873,45.28542933,138.89,138.8,3.97507061]
[1633058601377,45.28542933,138.89,138.79,12.32607081]
[1633058603375,5.63542961,138.88,138.79,12.32607081]
[1633058603574,3.03,138.87,138.79,12.32607081]
[1633058603877,27.79532627,138.87,138.79,12.32607081]
[1633058604076,47.59832627,138.87,138.79,12.32607081]
[1633058604276,5.63542961,138.86,138.78,8.34123417]
[1633058604475,3.03,138.85,138.78,8.34123417]
[1633058604877,8.66542961,138.85,138.78,8.34123417]
[1633058605075,12.1695519,138.84,138.77,4.02460314]
[1633058605277,12.1695519,138.84,138.77,8.34186075]
[1633058605278,15.1995519,138.84,138.77,8.34186075]
[1633058605476,5.63542961,138.83,138.77,8.34186075]
[1633058605877,3.03,138.82,138.77,8.34186075]
[1633058606080,3.03,138.82,138.75,4.05927688]
[1633058606479,8.66542961,138.82,138.75,4.05927688]
[1633058607077,24.76532627,138.81,138.75,4.05927688]
[1633058607280,3.03,138.8,138.74,12.46180409]
[1633058607479,3.03,138.8,138.74,8.34225691]
[1633058609686,3.03,138.8,138.73,24.10519776]
[1633058612005,3.03,138.8,138.71,81.66249337]
[1633058612202,3.03,138.8,138.72,8.3438786]
[1633058612804,3.03,138.8,138.72,12.50786435]
[1633058614111,3.03,138.8,138.73,25.75960338]
[1633058614307,3.03,138.8,138.74,8.34308022]
[1633058614707,3.03,138.8,138.73,25.75960338]
[1633058616411,3.03,138.8,138.74,8.34331114]
[1633058617515,3.03,138.8,138.74,12.44468564]
[1633058621318,3.03,138.8,138.75,4.13234863]
[1633058623219,3.03,138.8,138.76,4.15995188]
[1633058624222,3.03,138.8,138.77,22.94644186]
[1633058624422,3.03,138.8,138.77,27.1137309]
[1633058624622,3.03,138.8,138.78,8.34268973]
[1633058626224,3.03,138.8,138.77,4.16728904]
[1633058627024,3.03,138.8,138.78,4.16820987]
[1633058630427,3.03,138.8,138.79,4.1688901]
[1633058630626,3.03,138.8,138.79,12.51160028]
[1633058630831,3.03,138.8,138.79,32.62975838]
[1633058631026,3.03,138.8,138.79,40.972432]
[1633058632232,69.52776291,138.86,138.79,40.972432]
[1633058632434,0.03912,138.85,138.82,4.16854862]
[1633058632629,63.03,138.86,138.84,4.1682208]
[1633058632630,3.03,138.86,138.84,4.1682208]
[1633058632830,3.03,138.88,138.84,4.1682208]
[1633058633230,3.03,138.88,138.85,30.26676188]
[1633058634834,30.03912,138.93,138.85,50.20476188]
[1633058635032,3.03,138.92,138.86,12.50602746]
[1633058635234,3.03,138.92,138.87,4.151254]
[1633058635432,3.03,138.92,138.86,12.47732794]
[1633058636232,3.03,138.92,138.86,8.338715]
[1633058637834,3.03,138.92,138.86,12.40778025]
[1633058638435,3.03,138.92,138.86,8.338715]
[1633058638637,3.03,138.94,138.86,8.338715]
[1633058638835,3.03,138.94,138.87,4.04379627]
[1633058639035,3.03,138.94,138.88,27.39838574]
[1633058639236,3.03,138.94,138.88,49.20138574]
[1633058640039,3.03,138.96,138.88,49.20138574]
[1633058648142,3.03,138.96,138.88,27.39838574]
[1633058654951,3.03,138.96,138.88,44.88538574]
[1633058655151,3.03,138.96,138.89,5.63542961]
[1633058656551,3.03,138.96,138.88,44.88538574]
[1633058660252,8.66542961,138.96,138.89,8.33438031]
[1633058660459,0.03912,138.95,138.84,4.16199366]
[1633058660654,3.03,138.94,138.83,4.16227193]
[1633058660854,54.90177093,138.94,138.82,4.16259226]
[1633058661059,21.83265093,138.93,138.82,4.16259226]
[1633058661253,24.36555001,138.92,138.82,38.96600075]
[1633058661453,46.19820094,138.92,138.83,12.50142496]
[1633058661654,24.86265093,138.92,138.83,12.50142496]
[1633058661855,19.22722132,138.92,138.84,4.16306493]
[1633058662054,19.22722132,138.92,138.86,4.162668]
[1633058662256,19.22722132,138.92,138.85,4.16286027]
[1633058662657,19.22722132,138.92,138.85,32.22938714]
[1633058662857,19.22722132,138.92,138.86,8.33744966]
[1633058663457,19.22722132,138.92,138.86,12.50210826]
[1633058663654,24.86265093,138.92,138.86,8.33744966]
[1633058664054,24.86265093,138.92,138.87,4.16450723]
[1633058664853,24.86265093,138.92,138.86,8.33744966]
[1633058665058,24.86265093,138.92,138.85,4.1657667]
[1633058665657,24.86265093,138.92,138.86,4.16569001]
[1633058665858,24.86265093,138.92,138.86,8.33810006]
[1633058666058,24.86265093,138.92,138.85,12.50414023]
[1633058666654,0.03912,138.91,138.85,12.50414023]
[1633058666855,3.03,138.9,138.86,4.16580968]
[1633058667055,3.06912,138.9,138.86,4.16580968]
[1633058667255,3.06912,138.9,138.87,4.1656889]
[1633058667456,3.06912,138.9,138.86,4.16572845]
[1633058670059,3.06912,138.9,138.87,26.7747778]
[1633058670259,3.06912,138.9,138.88,8.33710713]
[1633058670459,3.03,138.9,138.88,8.33710713]
[1633058671461,3.03,138.9,138.87,4.15644985]
[1633058671663,3.03,138.9,138.84,4.16587013]
[1633058671864,8.70454961,138.9,138.83,4.16630962]
[1633058672062,8.70454961,138.9,138.84,4.16614296]
[1633058672263,3.06912,138.9,138.85,28.33609241]
[1633058672463,3.03,138.9,138.85,28.33609241]
[1633058674565,3.03,138.9,138.85,32.49268816]
[1633058674767,3.03,138.9,138.86,4.15435759]
[1633058677971,3.03,138.9,138.85,32.5003351]
[1633058678168,3.03,138.9,138.86,4.15821895]
[1633058680873,3.03,138.9,138.87,4.14553556]
[1633058681273,3.03,138.9,138.86,4.15707102]
[1633058686584,3.03,138.9,138.87,4.1419455]
[1633058686782,3.03,138.9,138.88,4.13146619]
[1633058687382,3.03,138.9,138.88,26.88907732]
[1633058687788,3.03,138.9,138.88,22.75761113]
[1633058688682,3.03,138.9,138.88,26.92448587]
[1633058689484,3.03,138.9,138.89,4.16716121]
[1633058692386,3.03,138.9,138.88,22.75761113]
[1633058692786,3.03,138.9,138.89,4.16710266]
[1633058697891,3.03,138.9,138.88,4.16735843]
[1633058702602,3.03,138.9,138.89,4.16737564]
[1633058702800,3.03,138.9,138.85,20.31653798]
[1633058703002,20.463,138.9,138.84,6.25173891]
[1633058703798,4.28475658,138.89,138.84,6.25173891]
[1633058704024,3.03,138.88,138.83,6.25228374]
[1633058705020,3.03,138.88,138.82,6.25227922]
[1633058707122,3.03,138.88,138.81,20.19917718]
[1633058710025,5.22598265,138.81,138.79,13.70749926]
[1633058710228,18.359,138.81,138.75,367.13293428]
[1633058710427,18.359,138.81,138.74,3.03]
[1633058710629,18.359,138.81,138.72,3.03]
[1633058710831,2.75092768,138.8,138.72,3.03]
[1633058711027,3.03,138.81,138.7,26.34662135]
[1633058711830,51.03,138.83,138.7,26.34662135]
[1633058714428,72.2795,138.82,138.7,26.34662135]
[1633058714627,3.03,138.81,138.7,26.34662135]
[1633058714830,3.03,138.81,138.7,3.03]
[1633058715027,3.03,138.81,138.68,540.64888744]
[1633058715230,3.03,138.81,138.68,537.61888744]
[1633058715231,19.51163996,138.8,138.68,537.61888744]
[1633058715426,3.03,138.79,138.68,537.61888744]
[1633058715830,3.03,138.79,138.69,25.7534873]
[1633058716631,3.03,138.79,138.69,49.0144873]
[1633058716832,3.03,138.79,138.73,2.08286025]
[1633058717034,3.03,138.79,138.74,2.08252938]
[1633058717232,3.03,138.79,138.73,2.08262032]
[1633058717433,3.03,138.79,138.72,2.08275648]
[1633058717631,3.03,138.79,138.73,30.24557296]
[1633058718933,3.03,138.79,138.71,2.08251082]
[1633058719137,3.03,138.79,138.7,2.08263445]
[1633058719332,0.03912,138.78,138.69,2.0828403]
[1633058719534,3.03,138.77,138.69,2.0828403]
[1633058719734,3.03,138.77,138.69,29.1389899]
[1633058720133,3.03,138.77,138.69,27.0561496]
[1633058722333,3.03,138.77,138.67,2.08222276]
[1633058722734,22.20808314,138.77,138.67,2.08222276]
[1633058723334,22.20808314,138.77,138.67,32.10102711]
[1633058726637,82.20808314,138.77,138.67,32.10102711]
[1633058727037,82.20808314,138.77,138.67,2.08222276]
[1633058727239,81.30542961,138.76,138.64,2.08283821]
[1633058727438,30.0,138.74,138.64,2.08283821]
[1633058727637,3.06912,138.73,138.64,2.08283821]
[1633058727839,22.24720314,138.73,138.63,2.08306687]
[1633058728037,97.24210314,138.73,138.63,2.08306687]
[1633058728237,19.17808314,138.72,138.63,2.08306687]
[1633058728437,3.03,138.71,138.64,2.08293686]
[1633058729237,3.03,138.71,138.63,2.08292121]
[1633058729438,3.03,138.71,138.64,2.08313155]
[1633058730937,3.03,138.71,138.63,2.0829653]
[1633058731139,22.20808314,138.71,138.63,2.0829653]
[1633058732543,22.20808314,138.71,138.61,2.08327452]
[1633058732739,87.84351275,138.71,138.61,2.08327452]
[1633058732939,87.84351275,138.71,138.6,2.08331505]
[1633058733539,87.84351275,138.71,138.61,28.46458632]
[1633058733742,87.84351275,138.71,138.61,30.54786087]
[1633058733941,27.84351275,138.71,138.63,2.08291805]
[1633058734144,22.20808314,138.71,138.62,2.08298516]
[1633058734540,27.84351275,138.71,138.61,2.08313771]
[1633058735541,27.84351275,138.71,138.61,28.58905599]
[1633058736141,27.84351275,138.71,138.62,2.08329958]
[1633058736642,27.84351275,138.71,138.61,26.50591828]
[1633058742547,22.20808314,138.71,138.61,26.50591828]
[1633058745148,22.20808314,138.71,138.58,3.03]
[1633058745948,76.3547,138.7,138.58,3.03]
[1633058746149,3.03,138.69,138.59,30.21513545]
[1633058747349,3.03,138.69,138.56,151.9567]
[1633058747549,21.84697202,138.69,138.53,3.03]
[1633058747751,100.28442163,138.69,138.53,3.03]
[1633058747953,24.58672381,138.68,138.53,3.03]
[1633058748151,3.03,138.67,138.53,3.03]
[1633058748353,21.84697202,138.67,138.53,3.03]
[1633058748552,60.0,138.66,138.54,23.01214217]
[1633058748750,3.03,138.65,138.54,23.01214217]
[1633058753958,3.03,138.65,138.53,3.03]
[1633058754155,3.03,138.65,138.52,546.91204384]
[1633058754358,5.63542961,138.64,138.52,546.91204384]
[1633058754557,3.03,138.63,138.52,546.91204384]
[1633058754757,33.03,138.63,138.52,546.91204384]
[1633058754956,63.03,138.63,138.52,546.91204384]
[1633058755157,63.03,138.63,138.53,24.42248617]
[1633058755356,3.03,138.63,138.53,24.42248617]
[1633058755557,63.03,138.63,138.53,24.42248617]
[1633058759762,68.66542961,138.63,138.53,24.42248617]
[1633058761368,3.60906598,138.54,138.53,24.42248617]
[1633058761567,3.03,138.62,138.53,32.77647468]
[1633058761767,3.03,138.62,138.54,8.35390916]
[1633058765267,8.66542961,138.62,138.54,8.35390916]
[1633058765469,3.03,138.62,138.54,8.35390916]
[1633058766168,8.66542961,138.62,138.54,8.35390916]
[1633058767370,3.03,138.62,138.54,8.35390916]
[1633058770874,5.63542961,138.61,138.54,8.35390916]
[1633058771072,3.03,138.6,138.54,8.35390916]
[1633058776981,3.03,138.6,138.54,21.3465098]
[1633058777679,3.03,138.6,138.54,27.6096409]
[1633058781481,3.03,138.62,138.54,27.6096409]
[1633058781683,63.06912,138.66,138.6,3.03]
[1633058781883,3.03,138.66,138.61,8.35192639]
[1633058782280,9.53945173,138.69,138.61,8.35192639]
[1633058782483,9.53945173,138.69,138.62,22.69276151]
[1633058782884,9.53945173,138.69,138.63,8.35044205]
[1633058783683,3.03,138.71,138.63,8.35044205]
[1633058791192,3.03,138.71,138.62,96.84896151]
[1633058791892,3.03,138.71,138.62,22.69276151]
[1633058792295,0.03912,138.7,138.62,22.69276151]
[1633058792494,3.03,138.69,138.62,22.69276151]
[1633058793094,22.59929647,138.69,138.62,22.69276151]
[1633058793293,52.59929647,138.69,138.62,22.69276151]
[1633058793493,22.59929647,138.69,138.62,22.69276151]
[1633058795193,22.59929647,138.69,138.6,3.03]
[1633058797395,22.59929647,138.69,138.62,24.51094778]
[1633058799002,22.59929647,138.69,138.6,7.20006047]
[1633058799201,39.10229647,138.69,138.6,3.03]
[1633058799399,5.63542961,138.68,138.57,83.0228]
[1633058799598,3.03,138.67,138.57,79.9928]
[1633058799799,22.59929647,138.67,138.57,79.9928]
[1633058800000,23.11803483,138.66,138.57,79.9928]
[1633058800201,3.03,138.65,138.57,79.9928]
[1633058800399,28.23472608,138.65,138.55,4.17164234]
[1633058800599,19.56929647,138.64,138.54,7.20195618]
[1633058800799,19.56929647,138.64,138.51,6.25793427]
[1633058800800,3.03,138.63,138.53,4.17227453]
[1633058800998,20.344,138.63,138.53,4.17227453]
[1633058801200,29.69530835,138.62,138.53,4.17227453]
[1633058801399,3.03,138.61,138.52,4.17258431]
[1633058801600,22.59929647,138.61,138.51,12.52860149]
[1633058802400,22.59929647,138.61,138.52,4.1724884]
[1633058802601,22.59929647,138.61,138.53,26.46405117]
[1633058804602,22.59929647,138.61,138.52,4.1724884]
[1633058805604,22.59929647,138.61,138.51,34.8261896]
[1633058805803,22.59929647,138.61,138.52,8.35617602]
[1633058806605,22.59929647,138.61,138.52,12.5280807]
[1633058807005,22.59929647,138.61,138.52,8.35617602]
[1633058807404,22.59929647,138.61,138.51,22.29786093]
[1633058807609,22.59929647,138.61,138.5,7.20204401]
[1633058807812,22.59929647,138.61,138.51,8.35685158]
[1633058808206,28.23472608,138.61,138.51,8.35685158]
[1633058808405,28.23472608,138.61,138.48,7.20265215]
[1633058808406,29.11494801,138.6,138.48,7.20265215]
[1633058808606,11.04593264,138.58,138.47,542.9819216]
[1633058808806,3.03,138.57,138.47,542.9819216]
[1633058809007,8.66542961,138.57,138.44,7.20299043]
[1633058809210,74.5786,138.56,138.45,8.36010915]
[1633058809407,3.03,138.55,138.43,12.534301]
[1633058809607,85.23783969,138.55,138.4,13.46316393]
[1633058809808,29.58462158,138.54,138.41,12.53426481]
[1633058810005,3.03,138.53,138.41,34.39465869]
[1633058810206,3.03,138.53,138.42,8.36135762]
[1633058810406,3.03,138.53,138.41,26.0332234]
[1633058811207,33.03,138.53,138.41,26.0332234]
[1633058811707,3.03,138.53,138.4,453.32266328]
[1633058811908,5.63542961,138.52,138.4,453.32266328]
[1633058812107,3.03,138.51,138.4,453.32266328]
[1633058812507,8.66542961,138.51,138.4,453.32266328]
[1633058812707,9.55254969,138.5,138.41,27.21003492]
[1633058814509,9.55254969,138.5,138.4,3.03]
[1633058814708,88.05814969,138.5,138.4,3.03]
[1633058815311,3.03,138.49,138.38,3.03]
[1633058815512,2.63149856,138.48,138.38,3.03]
[1633058815713,2.63149856,138.48,138.37,597.89867267]
[1633058815714,3.03,138.47,138.37,597.89867267]
[1633058815912,20.123,138.47,138.38,25.77163032]
[1633058816514,9.55531174,138.46,138.38,25.77163032]
[1633058816713,12.58531174,138.46,138.38,25.77163032]
[1633058820142,12.58531174,138.46,138.37,597.89867267]
[1633058821147,12.58531174,138.46,138.38,21.44190399]
[1633058822544,9.55531174,138.46,138.38,24.47190399]
[1633058822744,3.03,138.48,138.38,47.61290399]
[1633058823144,3.03,138.5,138.38,47.61290399]
[1633058826149,8.66542961,138.5,138.38,47.61290399]
[1633058826346,8.70454961,138.5,138.38,24.47190399]
[1633058828450,27.66243593,138.5,138.38,24.47190399]
[1633058828651,28.9742787,138.49,138.37,597.89867267]
[1633058828851,3.03,138.48,138.37,597.89867267]
[1633058829049,0.03912,138.47,138.37,597.89867267]
[1633058829249,3.03,138.46,138.37,597.89867267]
[1633058829449,32.0042787,138.46,138.37,597.89867267]
[1633058829648,67.1695549,138.46,138.38,21.28548261]
[1633058831949,67.1695549,138.46,138.37,597.89867267]
[1633058832148,28.90205647,138.45,138.37,597.89867267]
[1633058832351,3.03,138.44,138.37,597.89867267]
[1633058832952,3.03,138.44,138.38,27.07104674]
[1633058834554,12.58393051,138.48,138.38,27.07104674]
[1633058834753,0.02088,138.51,138.39,8.36414639]
[1633058834953,3.03,138.5,138.39,44.09084058]
[1633058835155,3.03,138.5,138.39,25.918]
[1633058835552,3.03,138.5,138.41,26.02981521]
[1633058835955,3.03,138.5,138.42,8.36320897]
[1633058836156,3.03,138.5,138.39,7.20448369]
[1633058836353,3.03,138.5,138.38,4.17506115]
[1633058836555,3.03,138.5,138.39,4.17605438]
[1633058836956,3.03,138.5,138.38,12.54125701]
[1633058837153,23.36060975,138.49,138.38,12.54125701]
[1633058837359,3.03,138.48,138.38,8.36511384]
[1633058837554,8.66542961,138.48,138.38,12.54294737]
[1633058837757,8.66542961,138.48,138.39,28.52484197]
[1633058838755,8.66542961,138.48,138.4,8.36646367]
[1633058838955,3.03,138.48,138.4,8.36646367]
[1633058839557,3.03,138.48,138.4,12.54483726]
[1633058840355,3.03,138.48,138.41,4.17858983]
[1633058840956,3.03,138.48,138.39,4.17950909]
[1633058841357,3.03,138.48,138.4,4.1793908]
[1633058842657,3.03,138.48,138.41,28.08945741]
[1633058842857,3.03,138.48,138.42,8.36585496]
[1633058843159,3.03,138.48,138.42,12.54533696]
[1633058848158,3.03,138.48,138.42,4.179482]
[1633058848358,3.03,138.48,138.41,4.18067599]
[1633058848760,3.03,138.48,138.42,4.18056475]
[1633058849563,3.03,138.48,138.41,12.54621591]
[1633058849962,3.03,138.48,138.42,4.18043733]
[1633058850362,3.03,138.48,138.43,24.09717889]
[1633058851964,3.03,138.48,138.44,8.36453109]
[1633058852165,3.03,138.48,138.43,24.09717889]
[1633058852964,3.03,138.48,138.44,8.36434955]
[1633058853964,3.03,138.5,138.44,8.36434955]
[1633058854166,3.03,138.5,138.45,4.17893714]
[1633058854365,3.03,138.5,138.44,8.36434955]
[1633058854366,3.03,138.5,138.46,29.91930855]
[1633058856270,3.03,138.5,138.47,2.08944779]
[1633058856470,3.03,138.5,138.46,32.00858989]
[1633058856670,3.03,138.5,138.47,2.08926197]
[1633058856872,9.54771994,138.57,138.47,2.08926197]
[1633058857071,3.03,138.56,138.47,2.08926197]
[1633058857471,3.03,138.56,138.48,2.08876937]
[1633058857871,3.03,138.56,138.49,21.66703183]
[1633058861278,26.89873664,138.55,138.49,21.66703183]
[1633058861480,29.92873664,138.55,138.45,2.0884703]
[1633058861880,29.92873664,138.55,138.46,2.08837334]
[1633058862080,29.92873664,138.55,138.45,2.08852109]
[1633058862482,29.92873664,138.55,138.46,29.27745631]
[1633058864983,3.03,138.55,138.46,29.27745631]
[1633058867087,27.31600248,138.54,138.46,31.36583985]
[1633058867282,3.03,138.53,138.46,29.27745631]
[1633058867488,3.03,138.53,138.45,2.08859207]
[1633058867884,3.03,138.53,138.44,2.0888794]
[1633058868283,3.03,138.53,138.43,2.08893702]
[1633058868483,118.67807393,138.53,138.43,2.08893702]
[1633058868684,124.31350354,138.53,138.43,2.08893702]
[1633058868884,154.31350354,138.53,138.42,2.0891617]
[1633058869084,154.31350354,138.53,138.41,2.08936393]
[1633058869085,124.31350354,138.53,138.41,2.08936393]
[1633058869284,60.0,138.52,138.41,2.08936393]
[1633058869485,3.03,138.51,138.41,2.08936393]
[1633058869686,20.93067393,138.51,138.41,2.08936393]
[1633058870088,24.7733207,138.5,138.41,2.08936393]
[1633058870287,3.03,138.49,138.41,0.52356393]
[1633058871587,3.03,138.49,138.4,26.81417074]
[1633058874891,3.03,138.49,138.41,12.5421142]
[1633058875092,3.03,138.49,138.41,8.36398257]
[1633058876290,17.90067393,138.51,138.42,5.63542961]
[1633058876291,20.93067393,138.51,138.42,5.63542961]
[1633058876490,3.03,138.51,138.42,9.81350438]
[1633058876691,3.03,138.51,138.43,87.59385328]
[1633058876890,3.03,138.51,138.43,79.2305]
[1633058877090,3.03,138.51,138.44,33.13504904]
[1633058877290,3.03,138.53,138.44,46.04316964]
[1633058877492,3.03,138.53,138.45,8.36236307]
[1633058877692,3.03,138.53,138.44,24.77216964]
[1633058883295,3.03,138.53,138.45,8.36212833]
[1633058890503,3.03,138.53,138.47,24.45214908]
[1633058900107,3.03,138.55,138.47,24.45214908]
[1633058900307,3.03,138.55,138.53,3.03]
[1633058901110,12.57703037,138.58,138.53,3.03]
[1633058902211,9.54703037,138.58,138.53,3.03]
[1633058902614,17.90067393,138.59,138.53,3.03]
[1633058902812,3.03,138.58,138.53,3.03]
[1633058904211,27.36085252,138.58,138.53,3.03]
[1633058907014,32.99628213,138.58,138.53,3.03]
[1633058911520,47.44377277,138.58,138.53,3.03]
[1633058911919,75.10490294,138.58,138.53,3.03]
[1633058914224,3.03,138.53,138.47,78.8256]
[1633058915226,31.70714657,138.53,138.47,78.8256]
[1633058915626,3.03,138.52,138.47,78.8256]
[1633058921032,75.7956,138.47,138.44,4.17927822]
[1633058921231,11.18985997,138.47,138.44,4.17927822]
[1633058921433,5.63542961,138.46,138.42,0.02088]
[1633058921632,25.33915426,138.47,138.41,356.13988058]
[1633058922031,54.62769322,138.47,138.41,356.13988058]
[1633058922234,54.62769322,138.47,138.4,23.0750852]
[1633058922634,25.33915426,138.47,138.4,23.0750852]
[1633058923640,11.18985997,138.47,138.4,23.0750852]
[1633058924033,8.15985997,138.47,138.41,8.36397529]
[1633058924233,3.03,138.5,138.41,8.36397529]
[1633058924234,18.21659887,138.52,138.47,8.15985997]
[1633058924436,18.21659887,138.52,138.47,25.17485997]
[1633058924437,12.58116926,138.52,138.47,25.17485997]
[1633058924633,3.03,138.54,138.47,25.17485997]